Cogmind - Beta 15 @@@ ROGUE MODE // 2025.07.19 @ 02:41:46 Player: shapeshifter Result: Self-destructed Performance ------------- Evolutions (2) 1000 Regions Visited (3) 600 Robots Destroyed (63) 315 Value Destroyed (1240) 1240 Prototype IDs (6) 120 Alien Tech Used (0) 0 Bonus (0) 0 TOTAL SCORE: 3275 Bonus ------- None Cogmind --------- Core Integrity 345/550 Matter 289/300 Energy 3/100 System Corruption 0% Temperature Cool (0) Movement Rolling (110) Ox2 Location -8/Materials Parts ------- > --- POWER (1) -------- (None) > --- PROPULSION (3) --- Wheel > --- UTILITY (3) ------ Large Storage Unit ECM Suite Hacking Suite > --- WEAPON (4) ------- Advanced Beam Rifle Advanced Beam Rifle Improved Assault Rifle > --- INVENTORY (15) --- Improved Ion Engine Improved Ion Engine Medium Storage Unit Medium Matter Pod (100) Propulsion Shielding Improved Weapon Shielding Peak State ------------ > --- POWER ------------ Light Nuclear Core > --- PROPULSION ------- Aluminum Leg Aluminum Leg Titanium Leg > --- UTILITY ---------- Large Storage Unit ECM Suite Hacking Suite > --- WEAPON ----------- Particle Gun Improved Medium Laser Advanced Beam Rifle Improved Light Cannon > --- INVENTORY -------- Improved Ion Engine Improved Ion Engine Wheel Medium Storage Unit Medium Matter Pod Propulsion Shielding Improved Weapon Shielding Improved EM Shotgun Advanced Beam Rifle Shotgun Improved Assault Rifle [Rating: 26] Favorites ----------- Power Improved Ion Engine Engine Improved Ion Engine Power Core Light Nuclear Core Propulsion Aluminum Leg Treads Light Treads Leg Aluminum Leg Wheel Wheel Utility Seismic Detector Device Seismic Detector Storage Medium Storage Unit Hackware Hacking Suite Weapon Improved Assault Rifle Energy Gun Medium Laser Energy Cannon Advanced Beam Cannon Ballistic Gun Improved Assault Rifle Ballistic Cannon Improved Light Cannon Build | -11 -10 -9 -8 ------- Run | Yrd Mat Mat Mat Slots Evolved 4 | . . 2 2 Power . | . . . . Propulsion 1 | . . 1 . Utility 1 | . . 1 . Weapon 2 | . . . 2 Parts Attached 40 | 7 7 11 15 Power 4 | 1 1 1 1 Engine 3 | 1 1 1 . Core 1 | . . . 1 Reactor . | . . . . Propulsion 12 | 2 4 2 4 Treads 2 | 2 . . . Leg 9 | . 4 2 3 Wheel 1 | . . . 1 Hover . | . . . . Flight . | . . . . Utility 7 | 2 1 1 3 Device 2 | 1 . 1 . Storage 4 | 1 1 . 2 Processor . | . . . . Hackware 1 | . . . 1 Protection . | . . . . Artifact . | . . . . Weapon 17 | 2 1 7 7 Energy Gun 8 | 1 . 2 5 Energy Cannon 1 | . . 1 . Ballistic Gun 7 | 1 1 4 1 Ballistic Cannon 1 | . . . 1 Launcher . | . . . . Special Weapon . | . . . . Impact Weapon . | . . . . Slashing Weapon . | . . . . Piercing Weapon . | . . . . Special Melee Weapon . | . . . . Unidentified Prototypes 5 | . . 3 2 Parts Lost 16 | . 3 6 7 Power 2 | . 1 . 1 Propulsion 8 | . . 5 3 Utility 1 | . . 1 . Weapon 5 | . 2 . 3 Highest Loss Streak 4 | . 1 3 4 To Critical Strikes 1 | . . 1 . Average Backups 7 | 2 4 9 8 Power 1 | 1 . 1 2 Propulsion 1 | . 1 1 . Utility 2 | . 2 3 3 Weapon 2 | . 1 3 1 Tool/Special . | . . . . Unused Backups 8 | . . 4 4 Power 3 | . . 1 2 Propulsion . | . . . . Utility 4 | . . 2 2 Weapon 1 | . . 1 . Tool/Special . | . . . . Average Slot Usage (%) 91 | . 97 89 84 Engine 10 | . 13 11 3 Treads 3 | . 9 . . Leg 19 | . 17 25 10 Device 15 | . 14 19 9 Storage 11 | . 14 11 9 Hackware 1 | . . . 8 Energy Gun 8 | . 13 1 15 Ballistic Gun 16 | . 13 20 11 Ballistic Cannon 1 | . . . 7 Peak Build Rating 26 | 7 8 15 26 Average Rating 12 | 4 6 13 22 On Entrance 6 | . 7 7 11 Naked Turns . | . . . . Heaviest Build 40 | 15 20 26 40 Greatest Support 40 | 40 40 30 37 Greatest Overweight (x) 8 | . 1 8 3 Average Overweight (x) . | . . . 2 Largest Inventory Capacity 15 | 8 10 10 15 Average Capacity 10 | 7 8 10 12 Most Carried 11 | 5 10 10 11 Average Carried 7 | 2 4 9 8 Final Capacity 15 | 8 10 10 15 Final Carried 10 | 2 10 10 6 Class Distribution -------------------- 52% | Mutant 29% | Scavenger-Mutant 14% | Gunner 3% | Scavenger-Gunner Dominant Class ---------------- Mutant | -10/Materials Scavenger-Mutant | -9/Materials Gunner | -8/Materials Resources | -11 -10 -9 -8 ----------- Run | Yrd Mat Mat Mat Matter Collected 1405 | 179 361 582 283 Remotely . | . . . . Salvage Created 1984 | 93 666 715 510 Parts 144 | 13 46 58 27 Haulers Intercepted 4 | . 1 2 1 Recyclers Shooed 7 | . 3 4 . Parts Field Recycled . | . . . . Retrieved Matter . | . . . . Parts Self-Destructed . | . . . . Prevented . | . . . . Kills | -11 -10 -9 -8 ------- Run | Yrd Mat Mat Mat Combat Hostiles Destroyed 35 | . 15 14 6 Guns 34 | . 15 14 5 Cannons 1 | . . . 1 Classes Destroyed 10 | 2 5 2 1 Worker 7 | . 1 3 3 Builder 1 | . . . 1 Tunneler 5 | 3 1 1 . Hauler 4 | . 1 2 1 Recycler 3 | 1 1 . 1 Mechanic 1 | . . 1 . Watcher 7 | . 3 3 1 Swarmer 13 | . 6 7 . Grunt 18 | . 9 3 6 Sentry 4 | . . 4 . Best Kill Streak 9 | 3 9 4 4 Combat Bots Only 3 | . 3 3 2 Max Kills in Single Turn 2 | 1 1 2 2 Gunslinging . | . . . . Exploded . | . . . . Melee . | . . . . Uniques/NPCs Destroyed . | . . . . Combat | -11 -10 -9 -8 -------- Run | Yrd Mat Mat Mat Hostile Shots Fired 271 | . 109 107 55 Missed 68 | . 26 34 8 Hits 203 | . 83 73 47 Projectile 203 | . 83 73 47 Critical Strikes 7 | . . 4 3 Damage Taken 2442 | . 858 798 786 Core 487 | . 175 107 205 Absorbed by Shields . | . . . . Core Remaining (%) 67 | 100 30 73 . Volleys Fired 166 | 8 66 63 29 Largest 4 | 2 2 2 4 Hottest 215 | 70 70 65 215 Shots Fired 360 | 16 128 125 91 Gun 340 | 16 128 125 71 Cannon 20 | . . . 20 Launcher . | . . . . Special . | . . . . Kinetic 233 | 8 62 120 43 Thermal 122 | 8 66 . 48 Explosive . | . . . . Electromagnetic 5 | . . 5 . Robot Hit Streak 11 | 6 9 11 6 Robot Miss Streak 6 | 2 5 4 6 Penetration Max . | . . . . Secondary Targets 6 | . 4 2 . Max Gunslinging Chain 1 | . 1 1 . Shots Hit Robots 202 | 10 73 80 39 Core Hits 95 | 5 35 34 21 Critical Kills 1 | . . 1 . Critical Parts Destroyed . | . . . . Critical Strikes 6 | 1 3 1 1 Burn 5 | 1 3 . 1 Destroy 1 | . . 1 . Melee Attacks . | . . . . Impact . | . . . . Slashing . | . . . . Piercing . | . . . . Sneak Attacks . | . . . . Combat Hostiles . | . . . . Follow-up Attacks . | . . . . Damage Inflicted 2952 | 133 970 1149 700 Guns 2817 | 133 962 1149 573 Cannons 127 | . . . 127 Explosions . | . . . . Melee . | . . . . Ramming 8 | . 8 . . Kinetic 1991 | 83 497 1099 312 Thermal 903 | 50 465 . 388 Explosive . | . . . . Electromagnetic 50 | . . 50 . Impact . | . . . . Slashing . | . . . . Piercing . | . . . . Highest Corruption 3 | . . 3 . Average Corruption 3 | . . 3 . Corruption Purged . | . . . . Corruption Blocked . | . . . . Effects 15 | . . 15 . Message Errors 1 | . . 1 . Matter Fused 5 | . . 5 . Heat Flow Errors 3 | . . 3 . Energy Discharges 1 | . . 1 . Data Loss (minor) 4 | . . 4 . Weapon Failures 1 | . . 1 . Overload Shots . | . . . . Overflow Damage 6 | . . . 6 Projectiles 6 | . . . 6 Explosions . | . . . . Melee . | . . . . Knockbacks 1 | . . . 1 Impact . | . . . . Kinetic 1 | . . . 1 Secondary . | . . . . Self-Inflicted Damage . | . . . . Shots . | . . . . Rammed . | . . . . Targets Rammed 3 | . 3 . . Kicked 3 | . 3 . . Crushed . | . . . . Highest Temperature 757 | . 136 255 757 Average Temperature 117 | . 37 79 237 Received Heat Transfer 1050 | . 351 222 477 Effects 33 | . . . 33 Shutdowns 4 | . . . 4 Energy Bleed 1 | . . . 1 Interference 2 | . . . 2 Short Circuit 4 | . . . 4 Damage (minor) 5 | . . . 5 Damage (major) 16 | . . . 16 Damage (core) 1 | . . . 1 Siege Activations . | . . . . Martial Activations . | . . . . Shielding Activations . | . . . . Robots Disrupted . | . . . . Combat Hostiles . | . . . . Robots Corrupted . | . . . . Combat Hostiles . | . . . . Parts Fried . | . . . . Impact Corruptions . | . . . . Robots Melted . | . . . . Combat Hostiles . | . . . . Parts Melted 3 | . 2 . 1 Heat Transferred 2738 | 222 1591 . 925 Parts Sabotaged . | . . . . Parts Stolen . | . . . . Parts Stripped . | . . . . Power Chain Reactions . | . . . . Alert | -11 -10 -9 -8 ------- Run | Yrd Mat Mat Mat Maximum Alert Level . | . . . . Low Security (%) 100 | 100 100 100 100 Level 1 . | . . . . Level 2 . | . . . . Level 3 . | . . . . Level 4 . | . . . . Level 5 . | . . . . High Security . | . . . . Max Security . | . . . . Peak Influence 156 | 10 156 87 90 Initial 51 | . . 51 18 Average 44 | 1 80 26 31 Influence Increases 1136 | 20 469 433 214 Destroy 0b10 Robot/C 700 | . 300 280 120 Destroy 0b10 Robot/NC 140 | 20 35 50 35 Destroy Leader 192 | . 78 90 24 Successful Hack 26 | . 11 11 4 Disable Machine 30 | . . . 30 Destroy Structure 3 | . . 2 1 Lose Combat Pursuer 45 | . 45 . . Influence Decreases 1136 | 20 346 510 260 Entered New Map 100 | . . 72 28 Time Decay 804 | 20 316 326 142 Lost Part 113 | . 30 33 50 Purge Threat 119 | . . 79 40 Squads Dispatched 11 | . 5 2 4 Investigation 7 | . 3 1 3 Extermination . | . . . . Reinforcement 4 | . 2 1 1 Assault . | . . . . Garrison . | . . . . Intercept . | . . . . Searches Triggered . | . . . . Construction Impeded . | . . . . Haulers Reinforced . | . . . . Active Scanning Responses . | . . . . Cargo Convoy Interrupts . | . . . . Stealth | -11 -10 -9 -8 --------- Run | Yrd Mat Mat Mat Distress Signals 6 | . 2 3 1 Communications Jammed . | . . . . Distress Signals . | . . . . Times Spotted 74 | . 27 30 17 Peak Tracking Total 6 | . 4 4 6 Tactical Retreats 7 | . 2 3 2 Traps | -11 -10 -9 -8 ------- Run | Yrd Mat Mat Mat Traps Triggered 3 | . 2 . 1 Indirectly . | . . . . Trap Hack Attempts . | . . . . Triggered . | . . . . Disarmed . | . . . . Reprogrammed . | . . . . Reused . | . . . . Traps Extracted . | . . . . Installed . | . . . . Triggered . | . . . . Machines | -11 -10 -9 -8 ---------- Run | Yrd Mat Mat Mat Machines Disabled 2 | . . . 2 Max in Single Turn 1 | . . . 1 Machines Repaired . | . . . . Machines Dismantled . | . . . . Machines Sabotaged . | . . . . Overloaded Fab Kills . | . . . . Hacking | -11 -10 -9 -8 --------- Run | Yrd Mat Mat Mat Machines Accessed 10 | . 2 4 4 Terminals 10 | . 2 4 4 Fabricators . | . . . . Repair Stations . | . . . . Recycling Units . | . . . . Scanalyzers . | . . . . Garrison Access . | . . . . Total Hacks 31 | . 7 12 12 Successful 11 | . 2 5 4 Failed 20 | . 5 7 8 Catastrophic 1 | . . . 1 Database Lockouts . | . . . . Manual . | . . . . Terminals 31 | . 7 12 12 Fabricators . | . . . . Repair Stations . | . . . . Recycling Units . | . . . . Scanalyzers . | . . . . Garrison Access . | . . . . Terminal Hacks 11 | . 2 5 4 Prototype ID Bank 1 | . . 1 . Branch Access Points 1 | . . . 1 Emergency Access Points 1 | . . 1 . Alert Level 1 | . . 1 . Unreport Threat 3 | . . 2 1 Locate Traps 1 | . 1 . . Dispatch Records 1 | . . . 1 Surveillance Status 1 | . 1 . . Hauler Manifests 1 | . . . 1 Fabricator Hacks . | . . . . Repair Station Hacks . | . . . . Recycling Unit Hacks . | . . . . Scanalyzer . | . . . . Garrison Access Hacks . | . . . . Unauthorized Hacks . | . . . . Terminals . | . . . . Fabricators . | . . . . Repair Stations . | . . . . Recycling Units . | . . . . Scanalyzers . | . . . . Garrison Access . | . . . . Data Cores Recovered . | . . . . Used . | . . . . Hacking Detections 10 | . 2 4 4 Full Trace Events 8 | . 2 3 3 Feedback Events . | . . . . Feedback Blocked . | . . . . Robot Schematics Acquired . | . . . . Robots Built . | . . . . Authchips . | . . . . Time . | . . . . Total Robot Build Rating . | . . . . Part Schematics Acquired . | . . . . Parts Built . | . . . . Authchips . | . . . . Time . | . . . . Total Part Build Rating . | . . . . Parts Repaired . | . . . . Time . | . . . . Parts Recycled . | . . . . Recycled Matter . | . . . . Retrieved Matter . | . . . . Retrieved Components . | . . . . Parts Scanalyzed . | . . . . Part Schematics Acquired . | . . . . Parts Damaged . | . . . . Bothacking | -11 -10 -9 -8 ------------ Run | Yrd Mat Mat Mat Used RIF Installer . | . . . . Robots Hacked . | . . . . Non-combat . | . . . . Combat . | . . . . Robot Hacks Applied . | . . . . Relay Couplers Released . | . . . . Fabnet Peak Effective % . | . . . . Robots Rewired . | . . . . Allies Hacked . | . . . . Hacks Repelled . | . . . . Allies | -11 -10 -9 -8 -------- Run | Yrd Mat Mat Mat Total Allies . | . . . . Largest Group . | . . . . Highest-Rated Group . | . . . . Highest-Rated Ally . | . . . . Total Orders . | . . . . Ally Attacks . | . . . . Total Damage . | . . . . Kills . | . . . . Allies Corrupted . | . . . . Allies Melted . | . . . . Intel | -11 -10 -9 -8 ------- Run | Yrd Mat Mat Mat Active Infowar (turns) 2213 | 5 801 997 410 Seismic 1703 | 5 801 897 . ECM 1280 | . . 870 410 Robot Analysis Total . | . . . . Derelict Logs Recovered . | . . . . Drone Launches . | . . . . Drone Recoveries . | . . . . Exploration | -11 -10 -9 -8 ------------- Run | Yrd Mat Mat Mat Turns Passed 2336 | 97 801 997 441 Spaces Moved 1188 | 44 441 513 190 Core 31 | 11 . 20 . Treads 153 | 33 120 . . Legs 874 | . 321 493 60 Wheels 130 | . . . 130 Hover . | . . . . Flight . | . . . . Fastest Speed 50 | 50 120 120 110 Average Speed 142 | 132 131 149 147 Slowest Speed 450 | 160 190 450 200 Overloaded Moves . | . . . . Propulsion Burnouts . | . . . . Robots Hopped . | . . . . Potential Cave-ins . | . . . . Cave-ins Triggered . | . . . . Exploration Rate (%) 37 | 3 72 50 23 Regions Visited 3 Branch Regions . Pre-discovered Areas . | . . . . Known Exits Taken . | . . . . Unknown Exits Taken 3 | 1 1 1 . Scrap Searched . | . . . . Spaces Dug . | . . . . Terrain Destroyed . | . . . . Melee . | . . . . Projectile . | . . . . AOE . | . . . . Terrain Rammed . | . . . . Walls Destroyed . | . . . . Machines Disabled . | . . . . Actions | -11 -10 -9 -8 --------- Run | Yrd Mat Mat Mat Total 1512 | 67 532 624 289 Wait 47 | . . 12 35 Move 1185 | 43 440 512 190 Hop . | . . . . Pick Up 46 | 9 13 14 10 Fast Attach 1 | . 1 . . Attach 28 | 7 3 7 11 Detach 1 | . . . 1 Swap 16 | . 3 6 7 Drop 19 | . 3 10 6 Fire 166 | 8 66 63 29 Melee . | . . . . Ram . | . . . . Kick 3 | . 3 . . Crush . | . . . . Escape Stasis . | . . . . Rewire . | . . . . Trap . | . . . . Miscellaneous . | . . . . Route ------- -11/Scrapyard -10/Materials (discovered 3 exits: *Mat x3) -9/Materials (discovered 4 exits: *Mat x2 / [*Min x2]) -8/Materials History --------- Turn | Location | Event 6 | -11/Scrapyard | Discovered new exit (range 14) 98 | -11/Scrapyard | Entered Materials 305 | -10/Materials | Build established: Mutant 417 | -10/Materials | Discovered new exit (range 12) 453 | -10/Materials | Core integrity fell below 50% 572 | -10/Materials | Discovered new exit (range 10) 850 | -10/Materials | Discovered new exit (range 14) 899 | -10/Materials | Entered another Materials area 899 | -9/Materials | Evolved 2 slots: Propulsion x1, Utility x1 1109 | -9/Materials | Build established: Scavenger-Mutant 1299 | -9/Materials | Discovered new exit (range 16) 1529 | -9/Materials | Discovered new exit (range 15) 1710 | -9/Materials | Discovered new exit (range 15) 1827 | -9/Materials | Lost 3 parts (2n1u) 1874 | -9/Materials | Discovered new exit (range 8) 1896 | -9/Materials | Entered another Materials area 1896 | -8/Materials | Evolved 2 slots: Weapon x2 2257 | -8/Materials | Lost 4 parts (2n2w) 2337 | -8/Materials | Self-destructed Last Messages --------------- 02247_ Dropped Broken Imp. Light Cannon. 02248_ Acquired 6 matter. 02248_ K-01 Serf collects debris. 02257_ Connecting with Terminal... >>Access(Branch) No branch access points found. >>Alert(Purge) Purged threat record, alert level lowered. 02261_ K-01 Serf collects debris. 02275_ Particle Gun destroyed. 02285_ Connecting with Terminal... 02285_ ALERT: Suspicious activity at Terminal M009. Dispatching Investigation squad. 02292_ W-25 Informer sends out distress signal. 02300_ ALERT: Hostiles spotted, dispatching reinforcements to Terminal M003. 02301_ Lgt. Nuclear Core destroyed. 02309_ G-47 Trooper destroyed. 02325_ Broken Titanium Leg destroyed. 02327_ Critical hit (Burn: +37). Map ----- +----------------------------------------------------+ | ??? ###????????????????????????????????????????? | | ??? ?????????????????????????????????????????? | | ??? ?? ?????????????????????????????????????? | | ??? ?????????????????????????????????????? | | ??? """ ""?????????????????????????????????????? | | ??? """ ""?????????????????????????????????????? | | ??? """ """ #?????????????????????????????????? | | ### #?????????????????????????????????? | | #?????????????????????????????????? | | #?????????????????????????????????? | | #?????????????????????????????????? | | ##+######### #?????????????????????????????????? | | #?????????????????????????????????????????? | | """" #?????????????????????????????????????????? | | """" #?????????????????????????????????????????? | | """" #?????????????????????????????????????????? | | #?????????????????????????????????????????? | | " #?????????????????????????????????????????? | | T #????????#????????????????????????????????? | | " #????????? ??????????????????????????????? | | #?????! ###/############################?? | | +#######???? %[ #?? | | #???????????" h #?? | | #?????????? g #?? | | #?????????????????#######g######+#########??????? | | +?????????????????# @ ## #????????????? | | #?????????????????# ##! "" #????????????? | | #?????????????????# ## "" #?????##?????? | | #?????????????????# ## T" #????? ??????? | | #?????????????????# ## "" #???? ???????? | | ####??????????????# ## "" #??? ????????? | | #??????????????# ## #?? #????????? | | #??????????????# ##/#####? #????????? | | #??????????????############ #???? #????????? | | =#??????????################ ##### ####### ? | | * |!############ | | %*=%!=! [%[ !=! | | ###%############ """ | | ###= ## # """ #####+#+### #######??? | | " # ## """ # " #???# #? #????????? | | " # ## R" # [%= #???# #?? #????????? | | " # ## """ + [%%= ##### #????????????? | | # ## # =%*! + #????????????? | | # ## # * ] ##### """ #????????????? | | # ######+## #???# """ #????????????? | | ### #????# #######+###### """ #????????????? | | ??# #????# #??# """ ########????????????? | | ??######????# #??# "T" #???????????????????? | | ????????????# #??# #???????????????????? | | ????????????# #??# #???????????????????? | +----------------------------------------------------+ Best States ------------- Heat Dissipation 31 Energy Generation 14 Energy Capacity 265 Matter Stores 360 Matter Capacity 400 Sight Range 16 Terrain Scan Density 10 ECM Strength 1 Evasion (%) 55 Recoil Reduction 2 Offensive Hacking 10 Item Schematics ----------------- None Robot Schematics ------------------ None Fabricated ------------ Nothing Repaired ---------- Nothing Alien Tech Used ----------------- None Achievements -------------- None Challenges ------------ None Game ------ Seed ModifiedSpikedClaymores Manual? 0 Play Time 00:23:07 Cumulative 10.5 hours Start 2025.07.19 @ 02:19:49 End 2025.07.19 @ 02:41:46 Sessions 1 Manual Loads 0 Difficulty Rogue Special Mode None Game No. 31 Rogue 31 Adventurer 0 Explorer 0 Win Type - Total 0 Types 0/0/0/0/0/0/0/0/0/0 Lore% 14 Gallery% 14 Achievement% 12 Wizard Run 0 Options --------- Layout 1 ASCII 0 Keyboard 0 Movement Mouse Keybinds 0 Fullscreen 1 Font 24/Smallcaps Map View 50x40 Zoom Use 0% Tactical HUD 1 Map Filters NONE Filters NONE Steam 1 RUN: 36a56d66-b032-41b2-8714-b87a04246cdd